[Event "Titled Tuesday Blitz March 28 Early 2023"]
[White "Perez Gormaz, Matias"]
[Black "Ozen, Deniz"]
[WhiteFideId "3406342"]
[BlackFideId "6349196"]
[WhiteElo "2362"]
[BlackElo "2303"]
[Result "1/2-1/2"]
[Round "03"]
[TimeControl "180+2"]
[Date "2023.03.28"]
[WhiteClock "0:00:11"]
[BlackClock "0:00:08"]

1. e4 {[%clk 0:03:00]}  e5 {[%clk 0:02:59]} 2. Nf3 {[%clk 0:03:01]}  Nf6 {[%clk 0:02:57]} 3. Nxe5 {[%clk 0:02:58]}  d5 {[%clk 0:02:57]} 4. exd5 {[%clk 0:02:53]}  Qxd5 {[%clk 0:02:58]} 5. d4 {[%clk 0:02:47]}  Nc6 {[%clk 0:02:58]} 6. Nxc6 {[%clk 0:02:41]}  Qxc6 {[%clk 0:02:59]} 7. Qf3 {[%clk 0:02:33]}  Qxc2 {[%clk 0:02:53]} 8. Nc3 {[%clk 0:02:28]}  Qf5 {[%clk 0:02:23]} 9. Bb5+ {[%clk 0:02:17]}  Kd8 {[%clk 0:02:09]} 10. Bf4 {[%clk 0:02:02]}  Bb4 {[%clk 0:02:06]} 11. O-O {[%clk 0:01:18]}  Bxc3 {[%clk 0:01:53]} 12. Bd3 {[%clk 0:01:18]}  Qd5 {[%clk 0:01:40]} 13. bxc3 {[%clk 0:01:09]}  Qxf3 {[%clk 0:01:40]} 14. gxf3 {[%clk 0:01:10]}  Be6 {[%clk 0:01:29]} 15. c4 {[%clk 0:01:09]}  Re8 {[%clk 0:01:26]} 16. Rab1 {[%clk 0:00:54]}  b6 {[%clk 0:01:24]} 17. Rfc1 {[%clk 0:00:49]}  Bh3 {[%clk 0:01:18]} 18. a4 {[%clk 0:00:45]}  Kd7 {[%clk 0:01:09]} 19. a5 {[%clk 0:00:39]}  Rab8 {[%clk 0:00:51]} 20. axb6 {[%clk 0:00:26]}  axb6 {[%clk 0:00:52]} 21. Bg3 {[%clk 0:00:24]}  Nh5 {[%clk 0:00:48]} 22. c5 {[%clk 0:00:14]}  bxc5 {[%clk 0:00:46]} 23. Bb5+ {[%clk 0:00:13]}  c6 {[%clk 0:00:41]} 24. Bxb8 {[%clk 0:00:14]}  cxb5 {[%clk 0:00:38]} 25. Rxb5 {[%clk 0:00:14]}  g5 {[%clk 0:00:32]} 26. Rb7+ {[%clk 0:00:14]}  Kc6 {[%clk 0:00:31]} 27. Rbb1 {[%clk 0:00:13]}  c4 {[%clk 0:00:22]} 28. Rxc4+ {[%clk 0:00:13]}  Kd5 {[%clk 0:00:22]} 29. Rc5+ {[%clk 0:00:13]}  Kxd4 {[%clk 0:00:23]} 30. Rxg5 {[%clk 0:00:14]}  Nf6 {[%clk 0:00:17]} 31. Rd1+ {[%clk 0:00:06]}  Kc3 {[%clk 0:00:17]} 32. Be5+ {[%clk 0:00:06]}  Kc2 {[%clk 0:00:18]} 33. Ra1 {[%clk 0:00:06]}  h6 {[%clk 0:00:16]} 34. Rg3 {[%clk 0:00:04]}  Rxe5 {[%clk 0:00:10]} 35. Rxh3 {[%clk 0:00:04]}  Nh5 {[%clk 0:00:10]} 36. Rf1 {[%clk 0:00:03]}  Kd2 {[%clk 0:00:08]} 37. Rg3 {[%clk 0:00:02]}  Nxg3 {[%clk 0:00:08]} 38. hxg3 {[%clk 0:00:03]}  Ke2 {[%clk 0:00:08]} 39. Kg2 {[%clk 0:00:04]}  Rf5 {[%clk 0:00:06]} 40. f4 {[%clk 0:00:04]}  Rf6 {[%clk 0:00:06]} 41. Rh1 {[%clk 0:00:05]}  Kd3 {[%clk 0:00:06]} 42. Rh5 {[%clk 0:00:05]}  Ke4 {[%clk 0:00:06]} 43. Re5+ {[%clk 0:00:06]}  Kd4 {[%clk 0:00:07]} 44. Kf3 {[%clk 0:00:07]}  Ra6 {[%clk 0:00:05]} 45. Re7 {[%clk 0:00:07]}  Rf6 {[%clk 0:00:05]} 46. Rd7+ {[%clk 0:00:07]}  Kc5 {[%clk 0:00:05]} 47. Ke4 {[%clk 0:00:07]}  Kc6 {[%clk 0:00:05]} 48. Rd2 {[%clk 0:00:07]}  Kc7 {[%clk 0:00:05]} 49. Ke5 {[%clk 0:00:07]}  Re6+ {[%clk 0:00:05]} 50. Kf5 {[%clk 0:00:08]}  Rg6 {[%clk 0:00:05]} 51. g4 {[%clk 0:00:07]}  Re6 {[%clk 0:00:05]} 52. f3 {[%clk 0:00:07]}  Rg6 {[%clk 0:00:06]} 53. Rh2 {[%clk 0:00:08]}  Re6 {[%clk 0:00:06]} 54. Rd2 {[%clk 0:00:08]}  Rg6 {[%clk 0:00:06]} 55. Rd3 {[%clk 0:00:09]}  Re6 {[%clk 0:00:06]} 56. Rd1 {[%clk 0:00:09]}  Rg6 {[%clk 0:00:07]} 57. Ke4 {[%clk 0:00:10]}  Re6+ {[%clk 0:00:07]} 58. Kf5 {[%clk 0:00:10]}  Rg6 {[%clk 0:00:07]} 59. Ke5 {[%clk 0:00:11]}  Re6+ {[%clk 0:00:08]} 60. Kf5 {[%clk 0:00:11]} 1/2-1/2


[Site "https://www.chess.com"]

[Event "Titled Tuesday Blitz March 28 Early 2023"]
[White "Movahed, Sina"]
[Black "Goudriaan, Etienne"]
[WhiteFideId "42520835"]
[BlackFideId "1021150"]
[WhiteElo "2225"]
[BlackElo "2318"]
[Result "1-0"]
[Round "03"]
[TimeControl "180+2"]
[Date "2023.03.28"]
[WhiteClock "0:00:51"]
[BlackClock "0:00:18"]

1. Nf3 {[%clk 0:03:00]}  Nf6 {[%clk 0:02:58]} 2. g3 {[%clk 0:02:59]}  d5 {[%clk 0:02:55]} 3. Bg2 {[%clk 0:02:59]}  c5 {[%clk 0:02:55]} 4. O-O {[%clk 0:02:58]}  h6 {[%clk 0:02:55]} 5. c4 {[%clk 0:02:53]}  d4 {[%clk 0:02:55]} 6. b4 {[%clk 0:02:53]}  cxb4 {[%clk 0:02:55]} 7. a3 {[%clk 0:02:53]}  b3 {[%clk 0:02:53]} 8. Qxb3 {[%clk 0:02:52]}  Nc6 {[%clk 0:02:53]} 9. d3 {[%clk 0:02:49]}  e5 {[%clk 0:02:37]} 10. a4 {[%clk 0:02:47]}  a5 {[%clk 0:02:32]} 11. Ba3 {[%clk 0:02:47]}  Bb4 {[%clk 0:02:32]} 12. Bxb4 {[%clk 0:02:41]}  axb4 {[%clk 0:02:32]} 13. Nbd2 {[%clk 0:02:40]}  O-O {[%clk 0:02:31]} 14. Ne1 {[%clk 0:02:30]}  Bg4 {[%clk 0:02:28]} 15. Nc2 {[%clk 0:02:28]}  Bxe2 {[%clk 0:02:20]} 16. Rfe1 {[%clk 0:02:28]}  Bg4 {[%clk 0:02:16]} 17. Nxb4 {[%clk 0:02:24]}  Na5 {[%clk 0:02:12]} 18. Qb2 {[%clk 0:02:22]}  Re8 {[%clk 0:01:59]} 19. Nd5 {[%clk 0:02:12]}  Nd7 {[%clk 0:01:56]} 20. Ne4 {[%clk 0:02:10]}  Ra6 {[%clk 0:01:45]} 21. c5 {[%clk 0:02:02]}  Be6 {[%clk 0:01:17]} 22. Nd6 {[%clk 0:01:51]}  Nxc5 {[%clk 0:01:14]} 23. Nxe8 {[%clk 0:01:48]}  Nxd3 {[%clk 0:00:55]} 24. Qa3 {[%clk 0:01:14]}  Nxe1 {[%clk 0:00:49]} 25. Ne7+ {[%clk 0:01:14]}  Kh8 {[%clk 0:00:43]} 26. Ng6+ {[%clk 0:01:07]}  Kh7 {[%clk 0:00:36]} 27. Qf8 {[%clk 0:00:54]}  Qxe8 {[%clk 0:00:18]} 28. Qxe8 {[%clk 0:00:52]}  Nxg2 {[%clk 0:00:18]} 29. Nf8+ {[%clk 0:00:51]} 1-0


[Site "https://www.chess.com"]

[Event "Titled Tuesday Blitz March 28 Early 2023"]
[White "Shimanov, Aleksandr"]
[Black "Sielecki, Christof"]
[WhiteFideId "4198603"]
[BlackFideId "4620437"]
[WhiteElo "2631"]
[BlackElo "2443"]
[Result "1-0"]
[Round "03"]
[TimeControl "180+2"]
[Date "2023.03.28"]
[WhiteClock "0:00:44"]
[BlackClock "0:00:10"]

1. e4 {[%clk 0:03:00]}  c5 {[%clk 0:02:58]} 2. c3 {[%clk 0:02:56]}  d5 {[%clk 0:02:57]} 3. exd5 {[%clk 0:02:56]}  Qxd5 {[%clk 0:02:58]} 4. d4 {[%clk 0:02:56]}  e6 {[%clk 0:02:58]} 5. Nf3 {[%clk 0:02:55]}  a6 {[%clk 0:02:58]} 6. Be3 {[%clk 0:02:52]}  Nd7 {[%clk 0:02:57]} 7. c4 {[%clk 0:02:50]}  Qc6 {[%clk 0:02:56]} 8. Nc3 {[%clk 0:02:50]}  Ngf6 {[%clk 0:02:55]} 9. Be2 {[%clk 0:02:47]}  b6 {[%clk 0:02:55]} 10. Ne5 {[%clk 0:02:15]}  Qc7 {[%clk 0:02:54]} 11. Nxd7 {[%clk 0:02:11]}  Bxd7 {[%clk 0:02:42]} 12. O-O {[%clk 0:02:11]}  Bd6 {[%clk 0:02:35]} 13. h3 {[%clk 0:02:10]}  O-O {[%clk 0:02:26]} 14. Qc2 {[%clk 0:02:07]}  cxd4 {[%clk 0:02:20]} 15. Bxd4 {[%clk 0:02:08]}  Bh2+ {[%clk 0:02:21]} 16. Kh1 {[%clk 0:02:08]}  Be5 {[%clk 0:02:22]} 17. Rad1 {[%clk 0:02:07]}  Bc6 {[%clk 0:02:18]} 18. Qd2 {[%clk 0:01:59]}  Bxd4 {[%clk 0:02:02]} 19. Qxd4 {[%clk 0:01:58]}  Rfd8 {[%clk 0:01:59]} 20. Qe3 {[%clk 0:01:57]}  h6 {[%clk 0:01:51]} 21. Kg1 {[%clk 0:01:56]}  Rxd1 {[%clk 0:01:28]} 22. Rxd1 {[%clk 0:01:55]}  Rd8 {[%clk 0:01:29]} 23. Rc1 {[%clk 0:01:46]}  Bb7 {[%clk 0:01:24]} 24. b4 {[%clk 0:01:45]}  e5 {[%clk 0:01:20]} 25. Bf1 {[%clk 0:01:44]}  Rd4 {[%clk 0:01:15]} 26. a3 {[%clk 0:01:37]}  Ne4 {[%clk 0:00:49]} 27. Nxe4 {[%clk 0:00:55]}  Rxe4 {[%clk 0:00:50]} 28. Qc3 {[%clk 0:00:54]}  Qc6 {[%clk 0:00:24]} 29. c5 {[%clk 0:00:51]}  b5 {[%clk 0:00:24]} 30. Rd1 {[%clk 0:00:49]}  g6 {[%clk 0:00:12]} 31. Rd8+ {[%clk 0:00:47]}  Kg7 {[%clk 0:00:11]} 32. Rd6 {[%clk 0:00:47]}  Qc8 {[%clk 0:00:10]} 33. f3 {[%clk 0:00:44]} 1-0


[Site "https://www.chess.com"]

[Event "Titled Tuesday Blitz March 28 Early 2023"]
[White "Domingo Nunez, Alejandro"]
[Black "Grigoriants, Sergey"]
[WhiteFideId "22245561"]
[BlackFideId "4130804"]
[WhiteElo "2230"]
[BlackElo "2502"]
[Result "0-1"]
[Round "03"]
[TimeControl "180+2"]
[Date "2023.03.28"]
[WhiteClock "0:01:37"]
[BlackClock "0:01:39"]

1. e4 {[%clk 0:03:00]}  c6 {[%clk 0:02:54]} 2. Nf3 {[%clk 0:03:00]}  d5 {[%clk 0:02:55]} 3. Nc3 {[%clk 0:03:00]}  Bg4 {[%clk 0:02:53]} 4. h3 {[%clk 0:02:59]}  Bxf3 {[%clk 0:02:53]} 5. Qxf3 {[%clk 0:02:58]}  Nf6 {[%clk 0:02:54]} 6. g3 {[%clk 0:02:57]}  e6 {[%clk 0:02:54]} 7. Bg2 {[%clk 0:02:56]}  Bb4 {[%clk 0:02:54]} 8. e5 {[%clk 0:02:46]}  Nfd7 {[%clk 0:02:54]} 9. Qg4 {[%clk 0:02:44]}  Bf8 {[%clk 0:02:50]} 10. d4 {[%clk 0:02:43]}  c5 {[%clk 0:02:44]} 11. dxc5 {[%clk 0:02:40]}  Nc6 {[%clk 0:02:42]} 12. f4 {[%clk 0:02:38]}  h5 {[%clk 0:02:39]} 13. Qe2 {[%clk 0:02:35]}  Bxc5 {[%clk 0:02:39]} 14. f5 {[%clk 0:02:23]}  Qb6 {[%clk 0:02:14]} 15. fxe6 {[%clk 0:02:20]}  fxe6 {[%clk 0:02:14]} 16. Bd2 {[%clk 0:01:59]}  Nd4 {[%clk 0:02:07]} 17. Qd1 {[%clk 0:01:52]}  Qxb2 {[%clk 0:01:56]} 18. Rb1 {[%clk 0:01:47]}  Qxc2 {[%clk 0:01:50]} 19. Rxb7 {[%clk 0:01:47]}  Qd3 {[%clk 0:01:45]} 20. Qa4 {[%clk 0:01:38]}  Nc2+ {[%clk 0:01:39]} 21. Kd1 {[%clk 0:01:37]}  Ne3+ {[%clk 0:01:39]} 22. Kc1 {[%clk 0:01:37]}  Ba3+ {[%clk 0:01:39]} 23. Qxa3 {[%clk 0:01:37]}  Qc2# {[%clk 0:01:39]} 0-1


[Site "https://www.chess.com"]

[Event "Titled Tuesday Blitz March 28 Early 2023"]
[White "Guerrero Olmos, Sergio"]
[Black "Costachi, Mihnea"]
[WhiteFideId "2257238"]
[BlackFideId "1217518"]
[WhiteElo "2266"]
[BlackElo "2456"]
[Result "1-0"]
[Round "03"]
[TimeControl "180+2"]
[Date "2023.03.28"]
[WhiteClock "0:00:06"]
[BlackClock "0:00:32"]

1. d4 {[%clk 0:03:00]}  Nf6 {[%clk 0:02:59]} 2. Nf3 {[%clk 0:03:00]}  d5 {[%clk 0:02:59]} 3. Bf4 {[%clk 0:03:00]}  c5 {[%clk 0:02:57]} 4. e3 {[%clk 0:03:01]}  cxd4 {[%clk 0:02:57]} 5. exd4 {[%clk 0:03:00]}  Nc6 {[%clk 0:02:58]} 6. c3 {[%clk 0:02:58]}  Bf5 {[%clk 0:02:57]} 7. Nbd2 {[%clk 0:02:48]}  e6 {[%clk 0:02:56]} 8. Nh4 {[%clk 0:02:44]}  Bg4 {[%clk 0:02:54]} 9. Qb3 {[%clk 0:02:41]}  Qb6 {[%clk 0:02:47]} 10. h3 {[%clk 0:02:41]}  Bh5 {[%clk 0:02:46]} 11. g4 {[%clk 0:02:37]}  Bg6 {[%clk 0:02:45]} 12. Nxg6 {[%clk 0:02:28]}  hxg6 {[%clk 0:02:45]} 13. Bg2 {[%clk 0:02:29]}  Be7 {[%clk 0:02:44]} 14. O-O {[%clk 0:02:21]}  O-O {[%clk 0:02:42]} 15. Rfe1 {[%clk 0:02:20]}  Rfe8 {[%clk 0:02:29]} 16. Re2 {[%clk 0:02:10]}  Na5 {[%clk 0:02:28]} 17. Qxb6 {[%clk 0:02:04]}  axb6 {[%clk 0:02:29]} 18. Rae1 {[%clk 0:01:59]}  Nc6 {[%clk 0:02:24]} 19. a3 {[%clk 0:01:57]}  Nd7 {[%clk 0:02:18]} 20. Nb3 {[%clk 0:01:37]}  Kf8 {[%clk 0:02:12]} 21. Na1 {[%clk 0:01:38]}  Na5 {[%clk 0:02:12]} 22. Nc2 {[%clk 0:01:12]}  Nc4 {[%clk 0:02:12]} 23. Ne3 {[%clk 0:01:12]}  b5 {[%clk 0:02:12]} 24. Nxd5 {[%clk 0:00:49]}  exd5 {[%clk 0:02:10]} 25. Bxd5 {[%clk 0:00:50]}  Na5 {[%clk 0:02:02]} 26. Kg2 {[%clk 0:00:34]}  Nc6 {[%clk 0:01:55]} 27. Bg3 {[%clk 0:00:25]}  Nb6 {[%clk 0:01:48]} 28. Bb3 {[%clk 0:00:24]}  Na5 {[%clk 0:01:43]} 29. Bc2 {[%clk 0:00:22]}  Nac4 {[%clk 0:01:44]} 30. Be4 {[%clk 0:00:20]}  Na5 {[%clk 0:01:38]} 31. Bc7 {[%clk 0:00:19]}  Nbc4 {[%clk 0:01:36]} 32. b3 {[%clk 0:00:17]}  Nxb3 {[%clk 0:01:33]} 33. Bxb7 {[%clk 0:00:17]}  Rxa3 {[%clk 0:01:33]} 34. Bc6 {[%clk 0:00:17]}  Raa8 {[%clk 0:01:14]} 35. Bxa8 {[%clk 0:00:17]}  Rxa8 {[%clk 0:01:11]} 36. Rxe7 {[%clk 0:00:17]}  Rc8 {[%clk 0:01:12]} 37. Bg3 {[%clk 0:00:15]}  Nba5 {[%clk 0:01:04]} 38. Rc7 {[%clk 0:00:14]}  Rxc7 {[%clk 0:00:59]} 39. Bxc7 {[%clk 0:00:15]}  Nc6 {[%clk 0:01:00]} 40. Rb1 {[%clk 0:00:14]}  Ke7 {[%clk 0:00:52]} 41. Rxb5 {[%clk 0:00:12]}  Kd7 {[%clk 0:00:53]} 42. Bg3 {[%clk 0:00:12]}  Ne7 {[%clk 0:00:48]} 43. Rb7+ {[%clk 0:00:11]}  Ke6 {[%clk 0:00:48]} 44. Rc7 {[%clk 0:00:09]}  Nd2 {[%clk 0:00:48]} 45. c4 {[%clk 0:00:08]}  Ne4 {[%clk 0:00:32]} 46. d5+ {[%clk 0:00:08]}  Kf6 {[%clk 0:00:33]} 47. f4 {[%clk 0:00:06]}  g5 {[%clk 0:00:25]} 48. fxg5+ {[%clk 0:00:06]}  Nxg5 {[%clk 0:00:26]} 49. Bh4 {[%clk 0:00:06]}  Ng6 {[%clk 0:00:26]} 50. Bxg5+ {[%clk 0:00:05]}  Kxg5 {[%clk 0:00:27]} 51. Rxf7 {[%clk 0:00:05]}  Kh6 {[%clk 0:00:26]} 52. Kg3 {[%clk 0:00:03]}  Ne5 {[%clk 0:00:26]} 53. Rf5 {[%clk 0:00:03]}  Nxc4 {[%clk 0:00:26]} 54. h4 {[%clk 0:00:04]}  Kg6 {[%clk 0:00:26]} 55. Rf4 {[%clk 0:00:04]}  Nd6 {[%clk 0:00:26]} 56. Rd4 {[%clk 0:00:04]}  Kf6 {[%clk 0:00:26]} 57. Kf4 {[%clk 0:00:05]}  g6 {[%clk 0:00:27]} 58. Ra4 {[%clk 0:00:05]}  Nb5 {[%clk 0:00:25]} 59. Ra6+ {[%clk 0:00:05]}  Kf7 {[%clk 0:00:25]} 60. Rb6 {[%clk 0:00:05]}  Nc3 {[%clk 0:00:26]} 61. Ke5 {[%clk 0:00:04]}  Ne2 {[%clk 0:00:26]} 62. Rb7+ {[%clk 0:00:05]}  Kf8 {[%clk 0:00:26]} 63. h5 {[%clk 0:00:05]}  gxh5 {[%clk 0:00:26]} 64. gxh5 {[%clk 0:00:06]}  Ng3 {[%clk 0:00:27]} 65. h6 {[%clk 0:00:06]}  Kg8 {[%clk 0:00:27]} 66. h7+ {[%clk 0:00:06]}  Kh8 {[%clk 0:00:27]} 67. d6 {[%clk 0:00:06]}  Nf5 {[%clk 0:00:28]} 68. Rb8+ {[%clk 0:00:05]}  Kxh7 {[%clk 0:00:28]} 69. Kxf5 {[%clk 0:00:05]}  Kg7 {[%clk 0:00:29]} 70. d7 {[%clk 0:00:06]}  Kf7 {[%clk 0:00:30]} 71. d8=Q {[%clk 0:00:06]}  Kg7 {[%clk 0:00:31]} 72. Qg5+ {[%clk 0:00:06]}  Kh7 {[%clk 0:00:31]} 73. Rb7+ {[%clk 0:00:06]}  Kh8 {[%clk 0:00:32]} 74. Qg7# {[%clk 0:00:06]} 1-0


[Site "https://www.chess.com"]

[Event "Titled Tuesday Blitz March 28 Early 2023"]
[White "Ahmadzada, Ahmad"]
[Black "Degenbaev, Aziz"]
[WhiteFideId "13413007"]
[BlackFideId "13802640"]
[WhiteElo "2388"]
[BlackElo "2152"]
[Result "1-0"]
[Round "03"]
[TimeControl "180+2"]
[Date "2023.03.28"]
[WhiteClock "0:02:11"]
[BlackClock "0:00:25"]

1. Nf3 {[%clk 0:03:00]}  Nf6 {[%clk 0:02:58]} 2. g3 {[%clk 0:03:01]}  g6 {[%clk 0:02:57]} 3. Bg2 {[%clk 0:03:01]}  Bg7 {[%clk 0:02:57]} 4. O-O {[%clk 0:03:02]}  c5 {[%clk 0:02:58]} 5. Re1 {[%clk 0:03:02]}  O-O {[%clk 0:02:54]} 6. e4 {[%clk 0:03:02]}  d6 {[%clk 0:02:54]} 7. e5 {[%clk 0:03:01]}  dxe5 {[%clk 0:02:53]} 8. Nxe5 {[%clk 0:03:02]}  Nbd7 {[%clk 0:02:48]} 9. Nxd7 {[%clk 0:03:02]}  Qxd7 {[%clk 0:02:46]} 10. Nc3 {[%clk 0:03:03]}  Rb8 {[%clk 0:02:44]} 11. a4 {[%clk 0:03:01]}  b6 {[%clk 0:02:42]} 12. d3 {[%clk 0:03:02]}  Bb7 {[%clk 0:02:42]} 13. Bf4 {[%clk 0:03:03]}  Bxg2 {[%clk 0:02:39]} 14. Kxg2 {[%clk 0:03:04]}  Rbc8 {[%clk 0:02:36]} 15. Qf3 {[%clk 0:03:03]}  Rfe8 {[%clk 0:02:28]} 16. Be5 {[%clk 0:03:03]}  h5 {[%clk 0:02:15]} 17. h3 {[%clk 0:03:03]}  Rc6 {[%clk 0:02:06]} 18. a5 {[%clk 0:03:02]}  Re6 {[%clk 0:02:04]} 19. a6 {[%clk 0:02:50]}  b5 {[%clk 0:01:45]} 20. Qb7 {[%clk 0:02:44]}  b4 {[%clk 0:01:30]} 21. Na4 {[%clk 0:02:42]}  Qxb7+ {[%clk 0:01:19]} 22. axb7 {[%clk 0:02:42]}  Nd7 {[%clk 0:01:20]} 23. Nxc5 {[%clk 0:02:16]}  Nxc5 {[%clk 0:00:30]} 24. b8=Q {[%clk 0:02:16]}  Rxb8 {[%clk 0:00:30]} 25. Bxb8 {[%clk 0:02:17]}  Rxe1 {[%clk 0:00:27]} 26. Rxe1 {[%clk 0:02:16]}  Bxb2 {[%clk 0:00:26]} 27. Bxa7 {[%clk 0:02:15]}  Ne6 {[%clk 0:00:26]} 28. Re4 {[%clk 0:02:12]}  Bc3 {[%clk 0:00:26]} 29. d4 {[%clk 0:02:12]}  Nc7 {[%clk 0:00:25]} 30. Rxe7 {[%clk 0:02:11]} 1-0


[Site "https://www.chess.com"]

[Event "Titled Tuesday Blitz March 28 Early 2023"]
[White "Jimenez Almeida, Luis David"]
[Black "Kovalev, Vladislav"]
[WhiteFideId "22242244"]
[BlackFideId "13504398"]
[WhiteElo "2245"]
[BlackElo "2555"]
[Result "0-1"]
[Round "03"]
[TimeControl "180+2"]
[Date "2023.03.28"]
[WhiteClock "0:00:28"]
[BlackClock "0:01:19"]

1. e4 {[%clk 0:03:00]}  e5 {[%clk 0:02:58]} 2. Nf3 {[%clk 0:03:00]}  Nc6 {[%clk 0:02:59]} 3. Bb5 {[%clk 0:03:00]}  a6 {[%clk 0:02:59]} 4. Ba4 {[%clk 0:03:00]}  Nf6 {[%clk 0:02:59]} 5. O-O {[%clk 0:03:00]}  Be7 {[%clk 0:03:00]} 6. Re1 {[%clk 0:03:00]}  b5 {[%clk 0:03:00]} 7. Bb3 {[%clk 0:03:00]}  d6 {[%clk 0:03:01]} 8. d3 {[%clk 0:03:00]}  O-O {[%clk 0:03:01]} 9. c3 {[%clk 0:03:00]}  Nb8 {[%clk 0:02:58]} 10. a4 {[%clk 0:02:59]}  Bb7 {[%clk 0:02:57]} 11. Nbd2 {[%clk 0:02:57]}  Nbd7 {[%clk 0:02:57]} 12. d4 {[%clk 0:02:48]}  c5 {[%clk 0:02:56]} 13. Bc2 {[%clk 0:02:38]}  Re8 {[%clk 0:02:54]} 14. Nf1 {[%clk 0:02:35]}  cxd4 {[%clk 0:02:35]} 15. cxd4 {[%clk 0:02:36]}  exd4 {[%clk 0:02:36]} 16. Nxd4 {[%clk 0:02:34]}  bxa4 {[%clk 0:02:36]} 17. Nf5 {[%clk 0:02:16]}  Bf8 {[%clk 0:02:35]} 18. N1g3 {[%clk 0:02:14]}  d5 {[%clk 0:02:32]} 19. Bxa4 {[%clk 0:01:54]}  dxe4 {[%clk 0:02:26]} 20. Bg5 {[%clk 0:01:51]}  Re6 {[%clk 0:02:20]} 21. Nh5 {[%clk 0:01:32]}  Nc5 {[%clk 0:01:29]} 22. Bxf6 {[%clk 0:00:57]}  Qxd1 {[%clk 0:01:27]} 23. Bxd1 {[%clk 0:00:50]}  gxf6 {[%clk 0:01:26]} 24. Re3 {[%clk 0:00:45]}  Rd8 {[%clk 0:01:25]} 25. b4 {[%clk 0:00:43]}  Nd3 {[%clk 0:01:21]} 26. Bb3 {[%clk 0:00:43]}  Bd5 {[%clk 0:01:19]} 27. Rg3+ {[%clk 0:00:42]}  Kh8 {[%clk 0:01:19]} 28. Bxd5 {[%clk 0:00:28]}  Rxd5 {[%clk 0:01:20]} 29. Ne3 {[%clk 0:00:28]}  Rxh5 {[%clk 0:01:19]} 0-1


[Site "https://www.chess.com"]

[Event "Titled Tuesday Blitz March 28 Early 2023"]
[White "Stalri"]
[Black "Pakleza, Zbigniew"]
[BlackFideId "1119290"]
[WhiteElo "2350"]
[BlackElo "2410"]
[Result "0-1"]
[Round "03"]
[TimeControl "180+2"]
[Date "2023.03.28"]
[WhiteClock "0:00:01"]
[BlackClock "0:00:07"]

1. Nf3 {[%clk 0:03:00]}  d5 {[%clk 0:03:00]} 2. g3 {[%clk 0:03:00]}  Nf6 {[%clk 0:03:00]} 3. Bg2 {[%clk 0:03:00]}  Bf5 {[%clk 0:03:01]} 4. O-O {[%clk 0:03:00]}  e6 {[%clk 0:03:01]} 5. c4 {[%clk 0:02:59]}  c6 {[%clk 0:03:02]} 6. cxd5 {[%clk 0:02:59]}  cxd5 {[%clk 0:03:02]} 7. Qb3 {[%clk 0:02:58]}  Qb6 {[%clk 0:03:02]} 8. Qxb6 {[%clk 0:02:59]}  axb6 {[%clk 0:03:03]} 9. d3 {[%clk 0:02:59]}  Nc6 {[%clk 0:03:02]} 10. Nc3 {[%clk 0:02:59]}  Bc5 {[%clk 0:03:01]} 11. Bf4 {[%clk 0:02:59]}  Ke7 {[%clk 0:03:00]} 12. a3 {[%clk 0:02:57]}  Bd6 {[%clk 0:02:37]} 13. Be3 {[%clk 0:02:47]}  Bc5 {[%clk 0:02:37]} 14. Bf4 {[%clk 0:02:38]}  Nd4 {[%clk 0:02:29]} 15. Nxd4 {[%clk 0:02:30]}  Bxd4 {[%clk 0:02:30]} 16. Rab1 {[%clk 0:02:25]}  Bxc3 {[%clk 0:01:28]} 17. bxc3 {[%clk 0:02:23]}  Nd7 {[%clk 0:01:27]} 18. Rb3 {[%clk 0:02:09]}  Ra4 {[%clk 0:01:18]} 19. Be3 {[%clk 0:01:41]}  Rha8 {[%clk 0:01:06]} 20. Bxb6 {[%clk 0:01:41]}  Rxa3 {[%clk 0:01:00]} 21. Rxa3 {[%clk 0:01:42]}  Rxa3 {[%clk 0:01:00]} 22. Rb1 {[%clk 0:01:42]}  Nxb6 {[%clk 0:00:56]} 23. e4 {[%clk 0:01:28]}  dxe4 {[%clk 0:00:41]} 24. dxe4 {[%clk 0:01:29]}  Bg6 {[%clk 0:00:41]} 25. f3 {[%clk 0:00:35]}  Nd7 {[%clk 0:00:34]} 26. Rxb7 {[%clk 0:00:34]}  Rxc3 {[%clk 0:00:34]} 27. h4 {[%clk 0:00:35]}  Kd6 {[%clk 0:00:26]} 28. g4 {[%clk 0:00:34]}  h5 {[%clk 0:00:26]} 29. Ra7 {[%clk 0:00:31]}  Nc5 {[%clk 0:00:20]} 30. gxh5 {[%clk 0:00:19]}  Bxh5 {[%clk 0:00:21]} 31. Kf2 {[%clk 0:00:19]}  e5 {[%clk 0:00:19]} 32. Ra8 {[%clk 0:00:18]}  Nd3+ {[%clk 0:00:14]} 33. Kg3 {[%clk 0:00:18]}  Nf4 {[%clk 0:00:15]} 34. Ra6+ {[%clk 0:00:14]}  Rc6 {[%clk 0:00:12]} 35. Ra2 {[%clk 0:00:09]}  Nxg2 {[%clk 0:00:10]} 36. Kxg2 {[%clk 0:00:09]}  Rc3 {[%clk 0:00:11]} 37. Ra6+ {[%clk 0:00:08]}  Ke7 {[%clk 0:00:11]} 38. Ra7+ {[%clk 0:00:09]}  Kd6 {[%clk 0:00:10]} 39. Ra6+ {[%clk 0:00:09]}  Kc5 {[%clk 0:00:10]} 40. Ra5+ {[%clk 0:00:06]}  Kd4 {[%clk 0:00:10]} 41. Rd5+ {[%clk 0:00:04]}  Ke3 {[%clk 0:00:11]} 42. Rxe5 {[%clk 0:00:03]}  Bxf3+ {[%clk 0:00:12]} 43. Kh2 {[%clk 0:00:02]}  Kf2 {[%clk 0:00:06]} 44. Ra5 {[%clk 0:00:01]}  Rc1 {[%clk 0:00:05]} 45. Ra2+ {[%clk 0:00:02]}  Be2 {[%clk 0:00:06]} 46. e5 {[%clk 0:00:01]}  Rc4 {[%clk 0:00:06]} 47. Kh3 {[%clk 0:00:01]}  Re4 {[%clk 0:00:06]} 48. e6 {[%clk 0:00:01]}  Re3+ {[%clk 0:00:06]} 49. Kh2 {[%clk 0:00:01]}  Rxe6 {[%clk 0:00:07]} 0-1


[Site "https://www.chess.com"]

[Event "Titled Tuesday Blitz March 28 Early 2023"]
[White "Seletsky, Grigory"]
[Black "Fedoseev, Vladimir"]
[WhiteFideId "14112191"]
[BlackFideId "24130737"]
[WhiteElo "2490"]
[BlackElo "2752"]
[Result "0-1"]
[Round "03"]
[TimeControl "180+2"]
[Date "2023.03.28"]
[WhiteClock "0:00:50"]
[BlackClock "0:01:17"]

1. d4 {[%clk 0:02:58]}  Nf6 {[%clk 0:02:59]} 2. Nf3 {[%clk 0:02:59]}  e6 {[%clk 0:02:59]} 3. c4 {[%clk 0:02:58]}  b6 {[%clk 0:02:59]} 4. a3 {[%clk 0:02:56]}  Ba6 {[%clk 0:02:58]} 5. e3 {[%clk 0:02:52]}  d5 {[%clk 0:02:52]} 6. cxd5 {[%clk 0:02:49]}  Bxf1 {[%clk 0:02:51]} 7. Kxf1 {[%clk 0:02:48]}  exd5 {[%clk 0:02:43]} 8. Nc3 {[%clk 0:02:48]}  Bd6 {[%clk 0:02:42]} 9. b4 {[%clk 0:02:44]}  O-O {[%clk 0:02:41]} 10. g3 {[%clk 0:02:43]}  Re8 {[%clk 0:02:37]} 11. Kg2 {[%clk 0:02:42]}  c6 {[%clk 0:02:38]} 12. Bb2 {[%clk 0:02:42]}  b5 {[%clk 0:02:36]} 13. Qb3 {[%clk 0:02:39]}  Nbd7 {[%clk 0:02:36]} 14. a4 {[%clk 0:02:37]}  a6 {[%clk 0:02:21]} 15. a5 {[%clk 0:02:32]}  Qe7 {[%clk 0:02:21]} 16. Ba3 {[%clk 0:02:28]}  Rac8 {[%clk 0:02:17]} 17. Rac1 {[%clk 0:02:26]}  h6 {[%clk 0:02:15]} 18. Rc2 {[%clk 0:02:25]}  Qe6 {[%clk 0:02:11]} 19. Rhc1 {[%clk 0:02:23]}  Rc7 {[%clk 0:02:07]} 20. Ne2 {[%clk 0:02:05]}  Rec8 {[%clk 0:02:06]} 21. Rd1 {[%clk 0:02:03]}  Nf8 {[%clk 0:02:00]} 22. Nc1 {[%clk 0:02:03]}  Ng6 {[%clk 0:01:54]} 23. Nd3 {[%clk 0:02:02]}  Re8 {[%clk 0:01:51]} 24. Nc5 {[%clk 0:02:02]}  Bxc5 {[%clk 0:01:51]} 25. dxc5 {[%clk 0:02:01]}  Qg4 {[%clk 0:01:47]} 26. Bb2 {[%clk 0:01:46]}  Nh4+ {[%clk 0:01:30]} 27. Nxh4 {[%clk 0:01:45]}  Qxd1 {[%clk 0:01:31]} 28. Bxf6 {[%clk 0:01:44]}  gxf6 {[%clk 0:01:30]} 29. Nf5 {[%clk 0:01:38]}  Re5 {[%clk 0:01:29]} 30. Nd4 {[%clk 0:01:16]}  Rh5 {[%clk 0:01:22]} 31. h3 {[%clk 0:00:54]}  Rxh3 {[%clk 0:01:16]} 32. Kxh3 {[%clk 0:00:51]}  Qh1+ {[%clk 0:01:17]} 33. Kg4 {[%clk 0:00:51]}  h5+ {[%clk 0:01:17]} 34. Kf4 {[%clk 0:00:50]}  Qe4# {[%clk 0:01:17]} 0-1


[Site "https://www.chess.com"]